Cogmind - Beta 17 @@@ ROGUE MODE // 2026.08.03 @ 21:34:27 Player: Juju Result: Destroyed by S-27 Virus with Autogun Performance ------------- Evolutions (3) 1500 Regions Visited (6) 1200 Robots Destroyed (109) 545 Value Destroyed (3864) 3864 Prototype IDs (32) 640 Alien Tech Used (0) 0 Bonus (247) 247 TOTAL SCORE: 7996 Bonus ------- High Alert Combat Kills 247 Cogmind --------- Core Integrity 0/700 Matter 300/300 Energy 100/100 System Corruption 0% Temperature Cool (0) Movement Treading (152) Location -7/Lower Caves Parts ------- > --- POWER (1) -------- (None) > --- PROPULSION (3) --- Advanced Treads (fused) Improved Medium Treads (fused) > --- UTILITY (6) ------ Machine Analyzer (fused) Improved Utility Shielding Improved Focal Shield (fused) Improved System Restoration Module (fused) Self-contained Transmogrifier > --- WEAPON (3) ------- (None) > --- INVENTORY (5) ---- Advanced Heat Sink Medium Storage Unit Makeshift Salvage Targeting Computer Improved Field Recycling Unit (90) Power Bank Peak State ------------ > --- POWER ------------ Improved Deuterium Engine > --- PROPULSION ------- Armored Treads Advanced Treads Advanced Treads > --- UTILITY ---------- Medium Storage Unit Hardened Heavy Armor Plating Thermal Defense Suite Makeshift System Restoration Module Self-contained Transmogrifier > --- WEAPON ----------- Precision Assault Rifle Precision Assault Rifle Improved Heavy Machine Gun > --- INVENTORY -------- Light Deuterium Engine Improved Treads Improved Heat Sink Improved Power Shielding Improved Utility Shielding Improved Medium Armor Plating Improved Field Recycling Unit Power Bank Precision Assault Rifle Precision Assault Rifle [Rating: 61] Favorites ----------- Power Improved Deuterium Engine Engine Improved Deuterium Engine Power Core Light Nuclear Core Propulsion Advanced Treads Treads Advanced Treads Leg VSS Leg Wheel Wheel Utility Self-contained Transmogrifier Device Self-contained Transmogrifier Storage Medium Storage Unit Processor Makeshift Salvage Targeting Computer Protection Hardened Heavy Armor Plating Weapon Gauss Rifle Energy Gun High-powered Field Laser Energy Cannon Heavy Particle Cannon Ballistic Gun Gauss Rifle Ballistic Cannon Assault Cannon Launcher Rocket Array Special Weapon Remote Datajack Slashing Weapon Great Axe Build | -11 -10 -10 -8 -7 -7 -7 ------- Run | Yrd Mat Sub Mat Fac Low Low Slots Evolved 6 | . . . 4 2 . . Power . | . . . . . . . Propulsion 1 | . . . 1 . . . Utility 4 | . . . 2 2 . . Weapon 1 | . . . 1 . . . Parts Attached 88 | 7 10 2 22 34 13 . Power 12 | 2 1 . 2 6 1 . Engine 11 | 2 1 . 2 5 1 . Core 1 | . . . . 1 . . Reactor . | . . . . . . . Propulsion 14 | 2 3 . 5 3 1 . Treads 12 | . 3 . 5 3 1 . Leg . | . . . . . . . Wheel 2 | 2 . . . . . . Hover . | . . . . . . . Flight . | . . . . . . . Utility 34 | 1 1 1 3 20 8 . Device 10 | . . 1 . 5 4 . Storage 2 | 1 1 . . . . . Processor 5 | . . . . 2 3 . Hackware . | . . . . . . . Protection 17 | . . . 3 13 1 . Artifact . | . . . . . . . Weapon 28 | 2 5 1 12 5 3 . Energy Gun 9 | 1 . . 7 . 1 . Energy Cannon 3 | . . . 3 . . . Ballistic Gun 14 | 1 4 1 1 5 2 . Ballistic Cannon 1 | . . . 1 . . . Launcher . | . . . . . . . Special Weapon 1 | . 1 . . . . . Impact Weapon . | . . . . . . . Slashing Weapon . | . . . . . . . Piercing Weapon . | . . . . . . . Special Melee Weapon . | . . . . . . . Unidentified Prototypes 6 | . . 1 4 1 . . Parts Lost 14 | . . . . 1 11 2 Power 2 | . . . . . 2 . Propulsion 3 | . . . . . 2 1 Utility 5 | . . . . 1 3 1 Weapon 4 | . . . . . 4 . Highest Loss Streak 7 | . . . . 1 7 2 To Critical Strikes . | . . . . . . . Average Backups 8 | 3 8 10 8 9 6 5 Power 1 | . 1 2 1 1 . . Propulsion 1 | 2 2 2 1 1 . . Utility 4 | . 1 4 4 5 5 5 Weapon 1 | . 2 1 . 1 . . Tool/Special . | . . . . . . . Unused Backups 17 | 1 4 . 6 4 . 2 Power 3 | . 1 . 1 1 . . Propulsion 4 | 1 2 . . 1 . . Utility 8 | . . . 5 1 . 2 Weapon 2 | . 1 . . 1 . . Tool/Special . | . . . . . . . Average Slot Usage (%) 86 | . 84 92 93 93 70 67 Engine 6 | . 14 9 9 5 3 . Treads 23 | . 20 28 26 22 22 22 Device 15 | . . 7 10 20 22 26 Storage 7 | . 14 14 9 6 3 . Processor 1 | . . . 1 . 3 10 Protection 7 | . . . 10 10 7 7 Energy Gun 3 | . . . 10 3 4 . Energy Cannon 1 | . . 1 7 . . . Ballistic Gun 10 | . 26 17 1 13 1 . Launcher 2 | . . 5 2 4 . . Peak Build Rating 61 | 6 10 24 45 61 58 44 Average Rating 39 | 3 9 15 38 53 44 42 On Entrance 25 | . 5 9 24 43 58 42 Avg Prop Armor Cover (%) 5 | . . . . . 5 . Naked Turns . | . . . . . . . Heaviest Build 74 | 14 23 23 52 74 65 9 Greatest Support 80 | 20 40 40 69 70 76 80 Greatest Overweight (x) 1 | . . . . 1 1 . Average Overweight (x) . | . . . . . . . Largest Inventory Capacity 10 | 8 10 10 10 10 10 5 Average Capacity 9 | 7 9 10 10 9 7 5 Most Carried 10 | 8 10 10 10 10 10 5 Average Carried 8 | 4 8 9 9 9 6 5 Final Capacity 10 | 8 10 10 10 10 5 5 Final Carried 10 | 8 10 10 10 10 5 5 Transmogrified Parts 95 | . . 6 20 34 31 4 Integrity Recovered 1789 | . . 192 253 554 717 73 Class Distribution -------------------- 47% | Tank 44% | Mutant 5% | Derelict-Tank Dominant Class ---------------- Mutant | -10/Materials Mutant | -10/Subcaves Tank | -8/Materials Tank | -7/Factory Mutant | -7/Lower Caves Mutant | -7/Lower Caves Resources | -11 -10 -10 -8 -7 -7 -7 ----------- Run | Yrd Mat Sub Mat Fac Low Low Matter Collected 2712 | 159 584 135 407 930 497 . Remotely . | . . . . . . . Salvage Created 4163 | 12 654 188 1318 1231 754 6 Parts 216 | 2 35 9 66 71 33 . Haulers Intercepted 7 | . 2 . 4 1 . . Recyclers Shooed . | . . . . . . . Parts Field Recycled 62 | . . . . 62 . . Retrieved Matter 688 | . . . . 688 . . Parts Self-Destructed 31 | . . . . . 30 1 Prevented . | . . . . . . . Parts Restored . | . . . . . . . Kills | -11 -10 -10 -8 -7 -7 -7 ------- Run | Yrd Mat Sub Mat Fac Low Low Combat Hostiles Destroyed 86 | . 13 4 26 25 17 1 Melee 6 | . . . 4 . 1 1 Guns 55 | . 13 2 10 15 15 . Cannons 8 | . . . 7 . 1 . AOE 17 | . . 2 5 10 . . Classes Destroyed 16 | 1 6 1 5 1 2 . Worker 6 | . 3 . 2 1 . . Builder 3 | . 1 . 1 1 . . Tunneler 1 | 1 . . . . . . Hauler 7 | . 2 . 4 1 . . Recycler 3 | . 1 . . 2 . . Mechanic 1 | . . . 1 . . . Drone 1 | . . . 1 . . . Watcher 3 | . . . 2 1 . . Swarmer 21 | . 6 . 7 3 4 1 Grunt 35 | . 7 . 13 7 8 . Brawler 2 | . . . . . 2 . Duelist 1 | . . . . . 1 . Sentry 8 | . . . 4 3 1 . Hunter 2 | . . . 1 1 . . Programmer 12 | . . . . 11 1 . Subdweller 4 | . . 4 . . . . Best Kill Streak 7 | 1 5 2 4 7 6 1 Combat Bots Only 7 | . 3 2 4 7 6 1 Max Kills in Single Turn 2 | 1 2 1 2 2 1 1 Gunslinging 1 | . 1 . . 1 . . Exploded 2 | . . 1 1 2 . . Melee 1 | . . . 1 . 1 1 Uniques/NPCs Destroyed . | . . . . . . . Combat | -11 -10 -10 -8 -7 -7 -7 -------- Run | Yrd Mat Sub Mat Fac Low Low Hostile Shots Fired 598 | . 62 15 137 150 152 82 Missed 146 | . 14 5 30 49 28 20 Hits 452 | . 48 10 107 101 124 62 Melee 8 | . . . . . 8 . Projectile 444 | . 48 10 107 101 116 62 Critical Strikes 12 | . . . 3 3 5 1 Damage Taken 7021 | 20 572 242 1686 1347 2510 644 Core 1091 | . 104 22 259 92 481 133 Absorbed by Shields 36 | . . . . 36 . . Redirected to Shielding 113 | . . . . . 43 70 Ignored by Resistances 6 | . . . . 6 . . Regen/Repaired (Parts) 185 | . . . . 185 . . Core Remaining (%) 67 | 100 . 49 52 . . . Volleys Fired 286 | 2 60 37 69 62 56 . Largest 3 | 1 2 2 3 3 3 . Hottest 210 | 40 100 100 210 173 168 . Shots Fired 651 | 2 119 49 180 176 125 . Gun 498 | 2 118 19 81 157 121 . Cannon 90 | . . . 85 1 4 . Launcher 39 | . . 7 14 18 . . Special 24 | . 1 23 . . . . Kinetic 364 | . 115 19 27 140 63 . Thermal 236 | . 1 23 132 18 62 . Explosive 18 | . . . . 18 . . Electromagnetic 33 | 2 3 7 21 . . . Robot Hit Streak 25 | 1 14 10 10 11 25 . Robot Miss Streak 6 | 1 4 1 6 5 3 . Penetration Max 1 | . . . 1 . . . Secondary Targets 9 | . 3 . . 2 4 . Max Gunslinging Chain 1 | . 1 . . 1 1 . Shots Hit Robots 405 | 1 74 19 106 111 94 . Core Hits 195 | 1 25 8 53 71 35 2 Critical Kills . | . . . . . . . Critical Parts Destroyed . | . . . . . . . Critical Strikes 11 | . . . 5 . 6 . Burn 11 | . . . 5 . 6 . Melee Attacks 5 | . . . 5 . . . Impact . | . . . . . . . Slashing 5 | . . . 5 . . . Piercing . | . . . . . . . Sneak Attacks . | . . . . . . . Combat Hostiles . | . . . . . . . Follow-up Attacks . | . . . . . . . Damage Inflicted 9383 | 93 1142 365 2814 3122 1840 7 Guns 6162 | 15 1142 185 923 2106 1791 . Cannons 1298 | . . . 1256 . 42 . Explosions 1721 | 78 . 180 447 1016 . . Melee 129 | . . . 129 . . . Ramming 73 | . . . 59 . 7 7 Kinetic 4622 | . 1142 185 371 1871 1053 . Thermal 2803 | 78 . . 1710 235 780 . Explosive 1096 | . . . 80 1016 . . Electromagnetic 660 | 15 . 180 465 . . . Impact . | . . . . . . . Slashing 129 | . . . 129 . . . Piercing . | . . . . . . . Highest Corruption 5 | . . . 1 2 5 . Average Corruption 2 | . . . 1 1 4 . Corruption Purged 11 | . . . . 4 7 . Corruption Blocked . | . . . . . . . Effects 60 | . . . 8 17 35 . Message Errors 12 | . . . 1 2 9 . Matter Fused 17 | . . . 1 6 10 . Heat Flow Errors 4 | . . . . 2 2 . Energy Discharges 14 | . . . 3 3 8 . Data Loss (minor) 8 | . . . 1 4 3 . Data Loss (major) 3 | . . . 2 . 1 . Misfires 1 | . . . . . 1 . Alerts 1 | . . . . . 1 . Overload Shots . | . . . . . . . Overflow Damage 56 | . . . 41 15 . . Projectiles . | . . . . . . . Explosions 33 | . . . 18 15 . . Melee 23 | . . . 23 . . . Knockbacks 3 | . . . 3 . . . Impact 3 | . . . 3 . . . Kinetic . | . . . . . . . Secondary . | . . . . . . . Self-Inflicted Damage 222 | 21 . . 141 60 . . Shots 8 | 1 . . 4 3 . . Rammed 31 | . . . 12 . 8 11 Targets Rammed 35 | . . . 14 . 9 12 Kicked . | . . . . . . . Crushed 4 | . . . 2 . 1 1 Highest Temperature 830 | 32 24 . 513 548 830 . Average Temperature 152 | 25 6 . 177 119 175 . Received Heat Transfer 1941 | . 234 60 639 222 717 69 Effects 68 | . . . 23 14 31 . Shutdowns 9 | . . . 5 2 2 . Energy Bleed 9 | . . . 6 1 2 . Interference 16 | . . . 6 7 3 . Matter Decay 2 | . . . 1 . 1 . Short Circuit 5 | . . . 1 . 4 . Damage (minor) 7 | . . . 2 . 5 . Damage (major) 17 | . . . 1 4 12 . Damage (core) 3 | . . . 1 . 2 . Siege Activations . | . . . . . . . Martial Activations . | . . . . . . . Shielding Activations . | . . . . . . . Robots Disrupted 1 | . . . 1 . . . Combat Hostiles 1 | . . . 1 . . . Robots Corrupted . | . . . . . . . Combat Hostiles . | . . . . . . . Parts Fried 3 | . . 2 1 . . . Impact Corruptions . | . . . . . . . Robots Melted . | . . . . . . . Combat Hostiles . | . . . . . . . Parts Melted 6 | . . . 3 . 3 . Heat Transferred 5893 | 50 . . 3367 333 2143 . Parts Sabotaged . | . . . . . . . Parts Stolen . | . . . . . . . Parts Stripped . | . . . . . . . Power Chain Reactions 2 | 1 . . 1 . . . Alert | -11 -10 -10 -8 -7 -7 -7 ------- Run | Yrd Mat Sub Mat Fac Low Low Maximum Alert Level 3 | . . . 1 3 . . Low Security (%) 64 | 100 100 . 69 47 . . Level 1 17 | . . . 30 17 . . Level 2 10 | . . . . 19 . . Level 3 7 | . . . . 14 . . Level 4 . | . . . . . . . Level 5 . | . . . . . . . High Security . | . . . . . . . Max Security . | . . . . . . . Peak Influence 807 | 5 138 . 321 807 . . Initial 144 | . 3 . . 144 . . Average 200 | . 58 . 151 279 . . Influence Increases 2853 | 5 437 . 881 1130 380 20 Destroy 0b10 Robot/C 1620 | . 260 . 500 500 340 20 Destroy 0b10 Robot/NC 125 | 5 35 . 55 30 . . Destroy Leader 388 | . 64 . 132 152 40 . Successful Hack 46 | . 32 . 2 12 . . Disable Machine 345 | . . . 45 300 . . Destroy Structure 179 | . 1 . 57 121 . . Lose Combat Pursuer 150 | . 45 . 90 15 . . Influence Decreases 2843 | . 392 50 563 662 1083 93 Entered New Map 509 | . 2 25 . 174 291 17 Time Decay 2208 | . 390 25 563 488 682 60 Lost Part 126 | . . . . . 110 16 Squads Dispatched 17 | . 3 . 3 11 . . Investigation 4 | . 3 . 1 . . . Extermination 8 | . . . . 8 . . Reinforcement 2 | . . . 2 . . . Assault . | . . . . . . . Garrison 3 | . . . . 3 . . Intercept . | . . . . . . . Searches Triggered . | . . . . . . . Construction Impeded . | . . . . . . . Haulers Reinforced . | . . . . . . . Active Scanning Responses . | . . . . . . . Cargo Convoy Interrupts . | . . . . . . . Stealth | -11 -10 -10 -8 -7 -7 -7 --------- Run | Yrd Mat Sub Mat Fac Low Low Distress Signals 10 | . 3 . 6 1 . . Communications Jammed 5 | . . . 5 . . . Distress Signals 5 | . . . 5 . . . Times Spotted 122 | . 27 4 40 28 18 5 Peak Tracking Total 7 | . 6 2 4 3 7 5 Tactical Retreats 8 | . 2 . 5 1 . . Traps | -11 -10 -10 -8 -7 -7 -7 ------- Run | Yrd Mat Sub Mat Fac Low Low Traps Triggered 8 | . 1 . 4 3 . . Indirectly 2 | . . . 2 . . . Trap Hack Attempts . | . . . . . . . Triggered . | . . . . . . . Disarmed . | . . . . . . . Reprogrammed . | . . . . . . . Reused . | . . . . . . . Traps Extracted . | . . . . . . . Installed . | . . . . . . . Triggered . | . . . . . . . Machines | -11 -10 -10 -8 -7 -7 -7 ---------- Run | Yrd Mat Sub Mat Fac Low Low Machines Disabled 24 | . . 1 3 20 . . Max in Single Turn 8 | . . 1 1 8 . . Garrison Access 1 | . . . . 1 . . Machines Repaired . | . . . . . . . Machines Dismantled . | . . . . . . . Machines Sabotaged . | . . . . . . . Overloaded Fab Kills . | . . . . . . . Hacking | -11 -10 -10 -8 -7 -7 -7 --------- Run | Yrd Mat Sub Mat Fac Low Low Machines Accessed 12 | . 7 1 1 2 1 . Terminals 7 | . 6 . 1 . . . Fabricators . | . . . . . . . Repair Stations 1 | . . . . 1 . . Recycling Units 1 | . 1 . . . . . Scanalyzers . | . . . . . . . Garrison Access 1 | . . . . 1 . . Total Hacks 30 | . 15 9 1 4 1 . Successful 21 | . 7 9 1 3 1 . Failed 9 | . 8 . . 1 . . Catastrophic 2 | . 2 . . . . . Database Lockouts . | . . . . . . . Manual 10 | . 9 1 . . . . Terminals 15 | . 14 . 1 . . . Fabricators . | . . . . . . . Repair Stations 2 | . . . . 2 . . Recycling Units 1 | . 1 . . . . . Scanalyzers . | . . . . . . . Garrison Access 2 | . . . . 2 . . Terminal Hacks 17 | . 6 9 1 . 1 . Record 10 | . 1 8 1 . . . Robot Analysis 2 | . 2 . . . . . Prototype ID Bank 3 | . 3 . . . . . Open Door 1 | . . . . . 1 . Proto ID Catalog 1 | . . 1 . . . . Fabricator Hacks . | . . . . . . . Repair Station Hacks 2 | . . . . 2 . . Scan Component 1 | . . . . 1 . . Repair 1 | . . . . 1 . . Recycling Unit Hacks 1 | . 1 . . . . . Report Inventory 1 | . 1 . . . . . Scanalyzer . | . . . . . . . Garrison Access Hacks 1 | . . . . 1 . . Seal Access 1 | . . . . 1 . . Unauthorized Hacks . | . . . . . . . Terminals . | . . . . . . . Fabricators . | . . . . . . . Repair Stations . | . . . . . . . Recycling Units . | . . . . . . . Scanalyzers . | . . . . . . . Garrison Access . | . . . . . . . Data Cores Recovered . | . . . . . . . Used . | . . . . . . . Hacking Detections 6 | . 6 . . . . . Full Trace Events 1 | . 1 . . . . . Feedback Events . | . . . . . . . Feedback Blocked . | . . . . . . . Robot Schematics Acquired . | . . . . . . . Robots Built . | . . . . . . . Authchips . | . . . . . . . Time . | . . . . . . . Total Robot Build Rating . | . . . . . . . Part Schematics Acquired . | . . . . . . . Parts Built . | . . . . . . . Authchips . | . . . . . . . Time . | . . . . . . . Total Part Build Rating . | . . . . . . . Part Studies Acquired . | . . . . . . . Parts Repaired 1 | . . . . 1 . . Time 13 | . . . . 13 . . Parts Recycled . | . . . . . . . Recycled Matter . | . . . . . . . Retrieved Matter . | . . . . . . . Retrieved Components . | . . . . . . . Parts Scanalyzed . | . . . . . . . Part Schematics Acquired . | . . . . . . . Parts Damaged . | . . . . . . . Bothacking | -11 -10 -10 -8 -7 -7 -7 ------------ Run | Yrd Mat Sub Mat Fac Low Low Used RIF Installer . | . . . . . . . Robots Hacked . | . . . . . . . Non-combat . | . . . . . . . Combat . | . . . . . . . Robot Hacks Applied . | . . . . . . . Relay Couplers Released . | . . . . . . . Fabnet Peak Effective % . | . . . . . . . Robots Rewired . | . . . . . . . Allies Hacked . | . . . . . . . Hacks Repelled . | . . . . . . . Allies | -11 -10 -10 -8 -7 -7 -7 -------- Run | Yrd Mat Sub Mat Fac Low Low Total Allies . | . . . . . . . Largest Group . | . . . . . . . Highest-Rated Group . | . . . . . . . Highest-Rated Ally . | . . . . . . . Total Orders . | . . . . . . . Ally Attacks . | . . . . . . . Total Damage . | . . . . . . . Kills . | . . . . . . . Allies Corrupted . | . . . . . . . Allies Melted . | . . . . . . . Intel | -11 -10 -10 -8 -7 -7 -7 ------- Run | Yrd Mat Sub Mat Fac Low Low Active Infowar (turns) 1972 | . . . 415 1217 208 132 Optics 152 | . . . 152 . . . Sensors 209 | . . . . 209 . . Terrain 120 | . . . . 120 . . T.N.C. 185 | . . . . 185 . . Machine Analysis 339 | . . . . . 207 132 Jamming 969 | . . . 263 705 1 . ECM 26 | . . . . 26 . . Robot Analysis Total 2 | . 2 . . . . . Derelict Logs Recovered 2 | . . 1 . . 1 . Drone Launches . | . . . . . . . Drone Recoveries . | . . . . . . . Exploration | -11 -10 -10 -8 -7 -7 -7 ------------- Run | Yrd Mat Sub Mat Fac Low Low Turns Passed 11029 | 73 1424 1017 1803 3867 2713 132 Spaces Moved 5190 | 71 890 547 907 1984 731 60 Core 30 | 30 . . . . . . Treads 4780 | . 551 547 907 1984 731 60 Legs . | . . . . . . . Wheels 380 | 41 339 . . . . . Hover . | . . . . . . . Flight . | . . . . . . . Fastest Speed 50 | 50 80 160 155 153 145 155 Average Speed 154 | 67 129 160 159 161 161 158 Slowest Speed 246 | 80 160 160 163 246 240 160 Overloaded Moves . | . . . . . . . Propulsion Burnouts . | . . . . . . . Robots Hopped . | . . . . . . . Potential Cave-ins . | . . . . . . . Cave-ins Triggered . | . . . . . . . Exploration Rate (%) 39 | 4 90 33 52 26 64 10 Regions Visited 6 Branch Regions 3 Pre-discovered Areas 1 | . . 1 . . . . Known Exits Taken . | . . . . . . . Unknown Exits Taken 6 | 1 1 1 1 1 1 . Scrap Searched 2 | . . 1 . . 1 . Spaces Dug 4 | . 1 . 3 . . . Terrain Destroyed 198 | 3 1 . 62 130 2 . Melee . | . . . . . . . Projectile 26 | . 1 . 22 1 2 . AOE 172 | 3 . . 40 129 . . Terrain Rammed . | . . . . . . . Walls Destroyed . | . . . . . . . Machines Disabled . | . . . . . . . Actions | -11 -10 -10 -8 -7 -7 -7 --------- Run | Yrd Mat Sub Mat Fac Low Low Total 7588 | 93 1046 592 1111 2509 2147 90 Wait 1816 | . 61 . 53 360 1324 18 Move 5185 | 70 889 546 907 1983 730 60 Hop . | . . . . . . . Pick Up 69 | 12 10 2 19 19 7 . Fast Attach 40 | 2 3 1 5 23 6 . Attach 31 | 4 4 . 11 7 5 . Detach 3 | 1 1 . . . 1 . Swap 47 | 1 5 4 9 22 6 . Drop 72 | 1 13 2 20 33 3 . Fire 286 | 2 60 37 69 62 56 . Melee 5 | . . . 5 . . . Ram . | . . . . . . . Kick . | . . . . . . . Crush 34 | . . . 13 . 9 12 Escape Stasis . | . . . . . . . Rewire . | . . . . . . . Trap . | . . . . . . . Miscellaneous . | . . . . . . . Route ------- -11/Scrapyard -10/Materials (discovered 4 exits: [*Mat x2] / [*Min] / *Sub) -10/Subcaves -8/Materials (discovered 3 exits: *Fac x2 / [*Sto]) -7/Factory (discovered 3 exits: [*Fac] / *Low x2) -7/Lower Caves -7/Lower Caves History --------- Turn | Location | Event 3 | -11/Scrapyard | Discovered new exit (range 16) 74 | -11/Scrapyard | Entered Materials 139 | -10/Materials | Discovered new exit (range 8) 200 | -10/Materials | Discovered new exit (range 16) 312 | -10/Materials | Build established: Mutant 574 | -10/Materials | Derelicts attacked the area 1077 | -10/Materials | Discovered new exit (range 7) 1319 | -10/Materials | Discovered new exit (range 15) 1498 | -10/Materials | Entered Subcaves 1502 | -10/Subcaves | Learned location of Mines (-10) 1814 | -10/Subcaves | Core integrity fell below 50% 1970 | -10/Subcaves | Visited 4L-MR0's lab 1983 | -10/Subcaves | Found Prototype Device 1983 | -10/Subcaves | Identified Sfc. Transmogrifier 1997 | -10/Subcaves | Found Prototype Device 2006 | -10/Subcaves | Identified Power Bank 2161 | -10/Subcaves | Discovered new exit (range 14) 2515 | -10/Subcaves | Entered Materials 2515 | -8/Materials | Evolved 4 slots: Propulsion x1, Utility x2, Weapon x1 2594 | -8/Materials | Discovered new exit (range 6) 2884 | -8/Materials | Build established: Derelict-Tank 3753 | -8/Materials | Discovered new exit (range 15) 3780 | -8/Materials | Build established: Tank 4272 | -8/Materials | Discovered new exit (range 4) 4318 | -8/Materials | Entered Factory 4318 | -7/Factory | Evolved 2 slots: Utility x2 4753 | -7/Factory | Discovered new exit (range 5) 4994 | -7/Factory | Discovered new exit (range 13) 7538 | -7/Factory | Repaired Med. Storage Unit 7591 | -7/Factory | Garrison activated, responded to threat 7625 | -7/Factory | Discovered new exit (range 6) 7653 | -7/Factory | Destroyed 7 combat bots 8185 | -7/Factory | Entered Lower Caves 8526 | -7/Lower Caves | Learned Factory security intel 8562 | -7/Lower Caves | Attracted the attention of an 0b10 outpost 8675 | -7/Lower Caves | Lost 7 parts (1p1n3u2w) 9271 | -7/Lower Caves | Build established: Mutant 9429 | -7/Lower Caves | Core integrity fell below 50% 9502 | -7/Lower Caves | Lost 4 parts (1p1n2w) 10864 | -7/Lower Caves | Spotted B-75 Beast 10869 | -7/Lower Caves | Core integrity fell below 20% 10884 | -7/Lower Caves | Discovered new exit (range 9) 10898 | -7/Lower Caves | Entered another Lower Caves area 11005 | -7/Lower Caves | Attracted the attention of an 0b10 checkpoint 11030 | -7/Lower Caves | Destroyed by S-27 Virus with Autogun Last Messages --------------- 10953_ Sfc. Transmogrifier converts Imp. Salvage Targeting Computer into Shock Absorption System. 10990_ Sfc. Transmogrifier converts Spk. Treads into Adv. Treads. 11000_ Sfc. Transmogrifier converts Thermal Shield into Imp. System Restoration Module. 11005_ Y-54 Guardian: "INTERCEPTING UNREGISTERED DERELICT." 11007_ Slammed into S-27 Virus. 11018_ S-27 Virus destroyed. 11022_ Shock Absorption System destroyed. 11023_ Crushed S-27 Virus. 11023_ S-27 Virus destroyed. 11024_ Slammed into G-47 Trooper. 11027_ Lgt. Nuclear Core fries itself beyond repair. 11027_ Slammed into G-47 Trooper. 11029_ Med. Treads destroyed. 11029_ Slammed into G-47 Trooper. Map ----- +----------------------------------------------------+ | ??????????????????## ### ##???### #?????????? | | ???????????????????## ??## ####### #?????????? | | ????????????????????# #### #?????????? | | ????????????????????# ##????????? | | ????????????????????############ #????????? | | ???????????????????????????????## #????????? | | ?????????????????????????#####??## ## #????????? | | ?????????????????????????# #### ##???????????? | | ?????????????????????????# ##???????????? | | ?????????????????????????## ##??????????? | | ?????????????????????????## #??????????? | | ?????????????????????????# #??????????? | | ?????????????????????????####### ##?????????? | | ???????????????????????????????##### #?????????? | | ?????????????????#####????########## #?????????? | | ??????????????? ## ?#### #?????????? | | ?????????????? ## ##?????????? | | ???????????????? ##?????????? | | ????????????????????# #?????????? | | ?????????????????????# #?????????? | | ?????????????????????# ###### #?????????? | | ?????????????????????# #????# ##?????????? | | ????????????????????## ##??# ##??????????? | | ???????????????????## %% #??## ##???????????? | | ??????????????###### %% #???###????????????? | | ??????????????# g@%s###??????????????????? | | ??????????????# %%%##????????????????????? | | ??????????????## ##%%Y##????????????????????? | | ???????????????## ?## #????????????????????? | | ????????????????#### ???## ?????????????????? | | ???????????????????#?????### ?????????????? | | ????????????????????????????### #?????????? | | ???????????????????????????????? #?????????? | | ????????????????????????????????? ##?????????? | | ?????????????????????????????????? #??????????? | | ??????????????????????????????????? #??????????? | | ????????????????????????????????????###??????????? | | ?????????????????????????????????????????????????? | | ?????????????????????????????????????????????????? | | ?????????????????????????????????????????????????? | | ?????????????????????????????????????????????????? | | ?????????????????????????????????????????????????? | | ?????????????????????????????????????????????????? | | ?????????????????????????????????????????????????? | | ?????????????????????????????????????????????????? | | ?????????????????????????????????????????????????? | | ?????????????????????????????????????????????????? | | ?????????????????????????????????????????????????? | | ?????????????????????????????????????????????????? | | ?????????????????????????????????????????????????? | +----------------------------------------------------+ Best States ------------- Heat Dissipation 53 Coolant Potential 65 Energy Generation 18 Energy Capacity 310 Matter Stores 300 Matter Capacity 300 Sight Range 18 Robot Scan Range 15 Terrain Scan Range 16 Terrain Scan Density 210 ECM Strength 2 Jamming Range 12 EM Shielding 2 Armor Coverage 825 Resistance: KI 25 Resistance: TH 20 Resistance: EX 25 Resistance: EM 15 Power Shielding 66 Utility Shielding 66 Evasion (%) 50 Targeting Accuracy 20 Melee Accuracy 5 Launcher Accuracy 40 Recoil Reduction 3 Salvage Targeting 8 Item Schematics ----------------- None Robot Schematics ------------------ None Fabricated ------------ Nothing Repaired ---------- Med. Storage Unit | 26% | -7/Factory Studied --------- None Alien Tech Used ----------------- None Achievements -------------- Mistaken Identity Challenges ------------ None Game ------ Seed BarrageBoreTransmogrifier Manual? 0 Play Time 01:45:52 Cumulative 18.7 hours Start 2026.08.02 @ 20:34:31 End 2026.08.03 @ 21:34:27 Sessions 3 Manual Loads 0 Difficulty Rogue Special Mode None Game No. 16 Rogue 16 Adventurer 0 Explorer 0 Win Type - Total 0 Types 0/0/0/0/0/0/0/0/0/0 Lore% 4 Gallery% 16 Achievement% 14 Wizard Run 0 Options --------- Layout 1 ASCII 0 Keyboard 0 Movement Mouse Keybinds 0 Fullscreen 1 Font 32/SmallcapsGlow Map View 50x35 Zoom Use 0% Tactical HUD 1 Map Filters NONE Filters NONE Steam 1 RUN: c6dff835-9f5b-40c0-be0c-31868b904e06